Cogmind - Beta 17 @@@ ROGUE MODE // 2026.06.30 @ 22:58:24 Player: blorx Result: Destroyed by Y-54 Guardian with Flak Gun Performance ------------- Evolutions (1) 500 Regions Visited (6) 1200 Robots Destroyed (59) 295 Value Destroyed (1602) 1602 Prototype IDs (5) 100 Alien Tech Used (0) 0 Bonus (607) 607 TOTAL SCORE: 4304 Bonus ------- Follower Combat Kills 7 Met Imprinter 300 Was Imprinted 300 Cogmind --------- Core Integrity 0/400 Matter 292/300 Energy 100/100 System Corruption 0% Temperature Cool (0) Movement Hovering (80) Location -6/Proximity Caves Parts ------- > --- POWER (1) -------- (None) > --- PROPULSION (3) --- Combat Airjet > --- UTILITY (3) ------ Medium Storage Unit 0b10 Decoder Chip [Generic] Targeting Computer > --- WEAPON (2) ------- (None) > --- INVENTORY (10) --- Ion Engine VTOL Module Medium Matter Pod (100) Machine Analyzer Tactical Coordination Suite Advanced Target Analyzer Barrage Gun Plasma Cutter Phasing Sabre CR-A16's Pointy Stick Peak State ------------ > --- POWER ------------ Light Nuclear Core > --- PROPULSION ------- Combat Airjet Combat Airjet > --- UTILITY ---------- Medium Storage Unit 0b10 Decoder Chip [Generic] Targeting Computer > --- WEAPON ----------- Advanced Beam Cannon Phasing Sabre > --- INVENTORY -------- Ion Engine Medium Matter Pod Machine Analyzer Tactical Coordination Suite Advanced Target Analyzer Barrage Gun Plasma Cutter CR-A16's Pointy Stick [Rating: 31] Favorites ----------- Power Ion Engine Engine Ion Engine Power Core Light Nuclear Core Propulsion Aluminum Leg Treads Light Treads Leg Aluminum Leg Wheel Armored Wheel Hover Unit Combat Airjet Utility Medium Storage Unit Device Improved Terrain Scanner Storage Medium Storage Unit Processor Targeting Computer Protection Light Armor Plating Weapon Advanced Beam Cannon Energy Gun Medium Laser Energy Cannon Advanced Beam Cannon Ballistic Gun Heavy Assault Rifle Launcher Rocket Launcher Special Weapon Plasma Cutter Slashing Weapon Phasing Sabre Build | -11 -10 -10 -9 -9 -7 -6 ------- Run | Yrd Mat Min Mat Min Zio Pro Slots Evolved 2 | . . . 2 . . . Power . | . . . . . . . Propulsion 1 | . . . 1 . . . Utility 1 | . . . 1 . . . Weapon . | . . . . . . . Parts Attached 56 | 7 2 6 23 12 1 5 Power 12 | 1 1 1 5 2 . 2 Engine 8 | 1 1 1 4 . . 1 Core 4 | . . . 1 2 . 1 Reactor . | . . . . . . . Propulsion 19 | 2 1 2 8 6 . . Treads 1 | . . . 1 . . . Leg 15 | 2 1 2 6 4 . . Wheel 1 | . . . 1 . . . Hover 2 | . . . . 2 . . Flight . | . . . . . . . Utility 8 | 2 . . 5 . 1 . Device 1 | 1 . . . . . . Storage 3 | 1 . . 2 . . . Processor 3 | . . . 2 . 1 . Hackware . | . . . . . . . Protection 1 | . . . 1 . . . Artifact . | . . . . . . . Weapon 17 | 2 . 3 5 4 . 3 Energy Gun 6 | 1 . 2 3 . . . Energy Cannon 2 | . . . . 2 . . Ballistic Gun 5 | 1 . 1 . 1 . 2 Ballistic Cannon . | . . . . . . . Launcher 2 | . . . 2 . . . Special Weapon 1 | . . . . 1 . . Impact Weapon . | . . . . . . . Slashing Weapon 1 | . . . . . . 1 Piercing Weapon . | . . . . . . . Special Melee Weapon . | . . . . . . . Unidentified Prototypes 2 | . . . 1 1 . . Parts Lost 13 | . . 1 5 3 . 4 Power 3 | . . . 1 . . 2 Propulsion 5 | . . . 2 2 . 1 Utility 1 | . . . 1 . . . Weapon 4 | . . 1 1 1 . 1 Highest Loss Streak 3 | . . 1 1 3 . 3 To Critical Strikes . | . . . . . . . Average Backups 8 | 4 6 6 8 8 9 8 Power 1 | 2 3 1 2 1 2 1 Propulsion 1 | 1 2 1 . . . . Utility 2 | . 1 2 1 2 3 4 Weapon 2 | . . 1 3 2 2 2 Tool/Special . | . . . . . . . Unused Backups 18 | 1 3 4 3 . 1 6 Power 5 | 1 1 2 1 . . . Propulsion 6 | . 2 2 1 . . 1 Utility 6 | . . . 1 . 1 4 Weapon 1 | . . . . . . 1 Tool/Special . | . . . . . . . Average Slot Usage (%) 94 | . 100 97 97 94 88 86 Engine 7 | . 14 14 9 . . 3 Core 4 | . . . 1 10 11 6 Leg 18 | . 28 28 27 22 . . Hover 7 | . . . . 6 22 21 Device 4 | . 14 14 1 . . . Storage 11 | . 14 14 11 11 11 11 Processor 13 | . . . 17 22 22 22 Energy Gun 9 | . 14 12 20 1 . . Energy Cannon 4 | . . . . 12 11 7 Ballistic Gun 6 | . 14 12 . 6 1 9 Special Weapon 2 | . . . . 1 9 . Peak Build Rating 31 | 9 9 16 20 24 28 31 Average Rating 18 | 7 9 12 16 18 26 28 On Entrance 14 | . 9 9 16 16 24 28 Avg Prop Armor Cover (%) 8 | . . . 8 . . . Naked Turns . | . . . . . . . Heaviest Build 25 | 14 14 19 25 23 22 23 Greatest Support 35 | 20 20 25 35 30 24 24 Greatest Overweight (x) 3 | 3 . . 1 1 . 1 Average Overweight (x) . | . . . . . . . Largest Inventory Capacity 10 | 8 8 8 10 10 10 10 Average Capacity 9 | 7 8 8 9 10 10 10 Most Carried 10 | 6 8 8 10 10 10 10 Average Carried 8 | 4 6 7 9 8 9 8 Final Capacity 10 | 8 8 8 10 10 10 10 Final Carried 10 | 6 7 7 10 9 10 10 Class Distribution -------------------- 51% | Scavenger-Mutant 48% | Mutant Dominant Class ---------------- Mutant | -10/Materials Scavenger-Mutant | -10/Mines Scavenger-Mutant | -9/Materials Scavenger-Mutant | -9/Mines Mutant | -7/Zion Mutant | -6/Proximity Caves Resources | -11 -10 -10 -9 -9 -7 -6 ----------- Run | Yrd Mat Min Mat Min Zio Pro Matter Collected 1081 | 362 42 126 298 162 20 71 Remotely . | . . . . . . . Salvage Created 2137 | 117 171 294 1133 294 . 128 Parts 115 | 7 13 9 63 16 . 7 Haulers Intercepted 1 | . . . 1 . . . Recyclers Shooed . | . . . . . . . Parts Field Recycled . | . . . . . . . Retrieved Matter . | . . . . . . . Parts Self-Destructed 6 | . . . . . . 6 Prevented . | . . . . . . . Parts Restored . | . . . . . . . Kills | -11 -10 -10 -9 -9 -7 -6 ------- Run | Yrd Mat Min Mat Min Zio Pro Combat Hostiles Destroyed 52 | . 6 8 20 13 . 5 Melee 1 | . . . . . . 1 Guns 29 | . 6 8 11 2 . 2 Cannons 13 | . . . . 11 . 2 AOE 7 | . . . 7 . . . Classes Destroyed 12 | 3 2 1 5 1 . . Worker 2 | 2 . . . . . . Builder 1 | . . . 1 . . . Tunneler 1 | 1 . . . . . . Hauler 1 | . . . 1 . . . Recycler 2 | 1 . . 1 . . . Operator 1 | . . . 1 . . . Watcher 4 | . . . 4 . . . Swarmer 17 | . 3 3 3 3 . 5 Grunt 20 | . 3 4 9 4 . . Duelist 2 | . . . 1 1 . . Sentry 8 | . . 1 7 . . . Assembled 5 | . . . . 5 . . Best Kill Streak 5 | 1 4 3 4 5 . 3 Combat Bots Only 5 | . 4 3 3 5 . 3 Max Kills in Single Turn 2 | 1 1 1 2 1 . 1 Gunslinging 1 | . . . 1 . . . Exploded 2 | . . . 2 . . . Melee 1 | . . . . . . 1 Uniques/NPCs Destroyed . | . . . . . . . Combat | -11 -10 -10 -9 -9 -7 -6 -------- Run | Yrd Mat Min Mat Min Zio Pro Hostile Shots Fired 340 | . 39 61 103 63 . 74 Missed 99 | . 12 16 32 18 . 21 Hits 241 | . 27 45 71 45 . 53 Melee 1 | . . . . 1 . . Projectile 240 | . 27 45 71 44 . 53 Critical Strikes 1 | . . . . . . 1 Damage Taken 3041 | . 256 496 1017 513 . 759 Core 599 | . 60 134 204 100 . 101 Absorbed by Shields . | . . . . . . . Core Remaining (%) 61 | 100 . 22 . . . . Volleys Fired 190 | 16 22 36 80 24 . 12 Largest 2 | 1 2 2 2 2 . 2 Hottest 143 | 50 70 75 140 143 . 101 Shots Fired 316 | 16 43 55 135 46 . 21 Gun 276 | 16 43 55 131 19 . 12 Cannon 36 | . . . . 27 . 9 Launcher 4 | . . . 4 . . . Special . | . . . . . . . Kinetic 73 | . 22 25 . 14 . 12 Thermal 196 | 16 21 30 88 32 . 9 Explosive 4 | . . . 4 . . . Electromagnetic 43 | . . . 43 . . . Robot Hit Streak 15 | 7 10 10 15 4 . 2 Robot Miss Streak 5 | 2 3 5 5 2 . 5 Penetration Max . | . . . . . . . Secondary Targets 1 | . . . 1 . . . Max Gunslinging Chain 1 | . . . 1 . . . Shots Hit Robots 193 | 12 26 36 87 20 . 12 Core Hits 93 | 5 12 13 43 14 . 6 Critical Kills . | . . . . . . . Critical Parts Destroyed . | . . . . . . . Critical Strikes 8 | 2 1 1 4 . . . Burn 8 | 2 1 1 4 . . . Melee Attacks 13 | . . . . . . 13 Impact . | . . . . . . . Slashing 13 | . . . . . . 13 Piercing . | . . . . . . . Sneak Attacks . | . . . . . . . Combat Hostiles . | . . . . . . . Follow-up Attacks . | . . . . . . . Damage Inflicted 3593 | 148 275 549 1893 410 . 318 Guns 2606 | 148 275 549 1446 105 . 83 Cannons 368 | . . . . 305 . 63 Explosions 446 | . . . 446 . . . Melee 172 | . . . . . . 172 Ramming 1 | . . . 1 . . . Kinetic 485 | . 111 206 . 85 . 83 Thermal 2174 | 148 164 343 1131 325 . 63 Explosive 124 | . . . 124 . . . Electromagnetic 637 | . . . 637 . . . Impact . | . . . . . . . Slashing 172 | . . . . . . 172 Piercing . | . . . . . . . Highest Corruption . | . . . . . . . Average Corruption . | . . . . . . . Corruption Purged . | . . . . . . . Corruption Blocked . | . . . . . . . Overload Shots . | . . . . . . . Overflow Damage 70 | . . . 41 . . 29 Projectiles . | . . . . . . . Explosions 41 | . . . 41 . . . Melee 29 | . . . . . . 29 Knockbacks . | . . . . . . . Impact . | . . . . . . . Kinetic . | . . . . . . . Secondary . | . . . . . . . Self-Inflicted Damage 128 | . . . 128 . . . Shots 4 | . . . 4 . . . Rammed . | . . . . . . . Targets Rammed 1 | . . . 1 . . . Kicked 1 | . . . 1 . . . Crushed . | . . . . . . . Highest Temperature 517 | 60 136 312 517 421 . 188 Average Temperature 105 | 23 63 109 108 146 . 92 Received Heat Transfer 786 | . 48 171 351 207 . 9 Effects 10 | . . 1 6 3 . . Shutdowns 1 | . . . . 1 . . Energy Bleed 5 | . . 1 4 . . . Interference 4 | . . . 2 2 . . Siege Activations . | . . . . . . . Martial Activations . | . . . . . . . Shielding Activations . | . . . . . . . Robots Disrupted . | . . . . . . . Combat Hostiles . | . . . . . . . Robots Corrupted . | . . . . . . . Combat Hostiles . | . . . . . . . Parts Fried . | . . . . . . . Impact Corruptions . | . . . . . . . Robots Melted 2 | . . . 2 . . . Combat Hostiles 2 | . . . 2 . . . Parts Melted 13 | 1 1 1 9 1 . . Heat Transferred 5160 | 592 555 888 2422 592 . 111 Parts Sabotaged . | . . . . . . . Parts Stolen . | . . . . . . . Parts Stripped . | . . . . . . . Power Chain Reactions 7 | . . . 7 . . . Alert | -11 -10 -10 -9 -9 -7 -6 ------- Run | Yrd Mat Min Mat Min Zio Pro Maximum Alert Level . | . . . . . . . Low Security (%) 100 | 100 100 100 100 100 . . Level 1 . | . . . . . . . Level 2 . | . . . . . . . Level 3 . | . . . . . . . Level 4 . | . . . . . . . Level 5 . | . . . . . . . High Security . | . . . . . . . Max Security . | . . . . . . . Peak Influence 168 | 5 121 52 168 135 . . Initial 65 | . . . 5 65 . . Average 44 | . 47 9 73 66 . . Influence Increases 1530 | 20 166 190 749 235 . 170 Destroy 0b10 Robot/C 960 | . 120 160 400 180 . 100 Destroy 0b10 Robot/NC 60 | 20 . . 40 . . . Destroy Leader 220 | . 20 30 130 30 . 10 Allied During Kill 10 | . . . . 10 . . Successful Hack 26 | . 10 . 16 . . . Disable Machine 60 | . . . 45 15 . . Destroy Structure 89 | . 1 . 88 . . . Lose Combat Pursuer 105 | . 15 . 30 . . 60 Influence Decreases 1508 | 20 165 177 595 319 84 148 Entered New Map 197 | . . 1 9 103 84 . Time Decay 1064 | 20 165 166 409 186 . 118 Lost Part 120 | . . 10 50 30 . 30 Purge Threat 127 | . . . 127 . . . Squads Dispatched 3 | . 2 . 1 . . . Investigation 2 | . 2 . . . . . Extermination . | . . . . . . . Reinforcement 1 | . . . 1 . . . Assault . | . . . . . . . Garrison . | . . . . . . . Intercept . | . . . . . . . Searches Triggered . | . . . . . . . Construction Impeded . | . . . . . . . Haulers Reinforced . | . . . . . . . Active Scanning Responses . | . . . . . . . Cargo Convoy Interrupts . | . . . . . . . Stealth | -11 -10 -10 -9 -9 -7 -6 --------- Run | Yrd Mat Min Mat Min Zio Pro Distress Signals 3 | . 2 . 1 . . . Communications Jammed . | . . . . . . . Distress Signals . | . . . . . . . Times Spotted 88 | . 17 9 33 18 . 11 Peak Tracking Total 8 | . 8 3 3 6 . 4 Tactical Retreats 7 | . 1 . 2 1 . 3 Traps | -11 -10 -10 -9 -9 -7 -6 ------- Run | Yrd Mat Min Mat Min Zio Pro Traps Triggered 3 | . 3 . . . . . Indirectly . | . . . . . . . Trap Hack Attempts . | . . . . . . . Triggered . | . . . . . . . Disarmed . | . . . . . . . Reprogrammed . | . . . . . . . Reused . | . . . . . . . Traps Extracted . | . . . . . . . Installed . | . . . . . . . Triggered . | . . . . . . . Most Traps Carried 1 | . . 1 1 . . . Machines | -11 -10 -10 -9 -9 -7 -6 ---------- Run | Yrd Mat Min Mat Min Zio Pro Machines Disabled 4 | . . . 3 1 . . Max in Single Turn 2 | . . . 2 1 . . Machines Repaired . | . . . . . . . Machines Dismantled 1 | . . . . 1 . . Machines Sabotaged . | . . . . . . . Overloaded Fab Kills . | . . . . . . . Hacking | -11 -10 -10 -9 -9 -7 -6 --------- Run | Yrd Mat Min Mat Min Zio Pro Machines Accessed 13 | . 4 . 9 . . . Terminals 9 | . 3 . 6 . . . Fabricators . | . . . . . . . Repair Stations . | . . . . . . . Recycling Units 3 | . 1 . 2 . . . Scanalyzers 1 | . . . 1 . . . Garrison Access . | . . . . . . . Total Hacks 32 | . 9 . 23 . . . Successful 17 | . 4 . 13 . . . Failed 15 | . 5 . 10 . . . Catastrophic 3 | . . . 3 . . . Database Lockouts . | . . . . . . . Manual 11 | . 1 . 9 . 1 . Terminals 25 | . 8 . 17 . . . Fabricators . | . . . . . . . Repair Stations . | . . . . . . . Recycling Units 4 | . 1 . 3 . . . Scanalyzers 3 | . . . 3 . . . Garrison Access . | . . . . . . . Terminal Hacks 12 | . 4 . 8 . . . Record 2 | . . . 2 . . . Prototype ID Bank 2 | . 1 . 1 . . . Emergency Access Points 1 | . 1 . . . . . Recycling Unit Index 1 | . . . 1 . . . Alert Level 1 | . . . 1 . . . Unreport Threat 1 | . . . 1 . . . Locate Traps 2 | . 1 . 1 . . . Investigation Status 1 | . 1 . . . . . Zone Layout 1 | . . . 1 . . . Fabricator Hacks . | . . . . . . . Repair Station Hacks . | . . . . . . . Recycling Unit Hacks 2 | . . . 2 . . . Retrieve Components 2 | . . . 2 . . . Scanalyzer 3 | . . . 3 . . . Insert Component 1 | . . . 1 . . . Analyze 2 | . . . 2 . . . Garrison Access Hacks . | . . . . . . . Unauthorized Hacks . | . . . . . . . Terminals . | . . . . . . . Fabricators . | . . . . . . . Repair Stations . | . . . . . . . Recycling Units . | . . . . . . . Scanalyzers . | . . . . . . . Garrison Access . | . . . . . . . Data Cores Recovered 1 | . . . 1 . . . Used . | . . . . . . . Hacking Detections 9 | . 2 . 7 . . . Full Trace Events . | . . . . . . . Feedback Events . | . . . . . . . Feedback Blocked . | . . . . . . . Robot Schematics Acquired 3 | . . . . . 3 . Robots Built . | . . . . . . . Authchips . | . . . . . . . Time . | . . . . . . . Total Robot Build Rating . | . . . . . . . Part Schematics Acquired 16 | . . . 1 . 15 . Parts Built . | . . . . . . . Authchips . | . . . . . . . Time . | . . . . . . . Total Part Build Rating . | . . . . . . . Part Studies Acquired . | . . . . . . . Parts Repaired . | . . . . . . . Time . | . . . . . . . Parts Recycled . | . . . . . . . Recycled Matter . | . . . . . . . Retrieved Matter . | . . . . . . . Retrieved Components 15 | . . . 15 . . . Parts Scanalyzed 1 | . . . 1 . . . Part Schematics Acquired 1 | . . . 1 . . . Parts Damaged . | . . . . . . . Bothacking | -11 -10 -10 -9 -9 -7 -6 ------------ Run | Yrd Mat Min Mat Min Zio Pro Used RIF Installer . | . . . . . . . Robots Hacked . | . . . . . . . Non-combat . | . . . . . . . Combat . | . . . . . . . Robot Hacks Applied . | . . . . . . . Relay Couplers Released . | . . . . . . . Fabnet Peak Effective % . | . . . . . . . Robots Rewired . | . . . . . . . Allies Hacked . | . . . . . . . Hacks Repelled . | . . . . . . . Allies | -11 -10 -10 -9 -9 -7 -6 -------- Run | Yrd Mat Min Mat Min Zio Pro Total Allies 6 | . . . . 2 4 . Largest Group 4 | . . . . 2 4 . Highest-Rated Group 157 | . . . . 45 157 . Highest-Rated Ally 41 | . . . . 31 41 . Total Orders . | . . . . . . . Ally Attacks 4 | . . . . 4 . . Total Damage 41 | . . . . 41 . . Kills 1 | . . . . 1 . . Allies Corrupted . | . . . . . . . Allies Melted . | . . . . . . . Intel | -11 -10 -10 -9 -9 -7 -6 ------- Run | Yrd Mat Min Mat Min Zio Pro Active Infowar (turns) 4385 | 135 397 1029 1039 447 836 502 Optics 1488 | . . . 862 447 179 . Terrain 1738 | 135 397 1029 177 . . . Decoding 1159 | . . . . . 657 502 Robot Analysis Total . | . . . . . . . Derelict Logs Recovered 5 | . . 2 . 1 1 1 Drone Launches . | . . . . . . . Drone Recoveries . | . . . . . . . Exploration | -11 -10 -10 -9 -9 -7 -6 ------------- Run | Yrd Mat Min Mat Min Zio Pro Turns Passed 4598 | 211 397 1029 1176 447 836 502 Spaces Moved 3763 | 134 269 752 708 312 1041 547 Core 5 | 5 . . . . . . Treads . | . . . . . . . Legs 2025 | 129 269 752 708 167 . . Wheels . | . . . . . . . Hover 1733 | . . . . 145 1041 547 Flight . | . . . . . . . Fastest Speed 50 | 50 120 120 120 77 77 77 Average Speed 100 | 118 120 120 120 103 77 77 Slowest Speed 200 | 200 120 120 190 190 77 150 Overloaded Moves . | . . . . . . . Propulsion Burnouts . | . . . . . . . Robots Hopped . | . . . . . . . Potential Cave-ins . | . . . . . . . Cave-ins Triggered . | . . . . . . . Exploration Rate (%) 64 | 8 47 99 60 72 90 77 Regions Visited 6 Branch Regions 4 Pre-discovered Areas 2 | . . . . . 2 . Known Exits Taken . | . . . . . . . Unknown Exits Taken 6 | 1 1 1 1 1 1 . Scrap Searched 8 | . . 3 . 1 3 1 Spaces Dug . | . . . . . . . Terrain Destroyed 98 | . . . 98 . . . Melee . | . . . . . . . Projectile . | . . . . . . . AOE 98 | . . . 98 . . . Terrain Rammed . | . . . . . . . Walls Destroyed . | . . . . . . . Machines Disabled . | . . . . . . . Actions | -11 -10 -10 -9 -9 -7 -6 --------- Run | Yrd Mat Min Mat Min Zio Pro Total 4230 | 166 306 826 895 377 1074 586 Wait 111 | 2 7 17 48 14 19 4 Move 3757 | 133 268 751 707 311 1040 547 Hop . | . . . . . . . Pick Up 40 | 7 3 6 13 3 7 1 Fast Attach 17 | 7 . 1 6 3 . . Attach 10 | . . 1 3 3 . 3 Detach 2 | . . . . . . 2 Swap 36 | . 2 5 17 7 2 3 Drop 47 | 1 4 9 20 7 5 1 Fire 190 | 16 22 36 80 24 . 12 Melee 13 | . . . . . . 13 Ram . | . . . . . . . Kick 1 | . . . 1 . . . Crush . | . . . . . . . Escape Stasis . | . . . . . . . Rewire . | . . . . . . . Trap . | . . . . . . . Miscellaneous 6 | . . . . 5 1 . Route ------- -11/Scrapyard -10/Materials (discovered 3 exits: *Mat / [*Min x2]) -10/Mines (discovered 3 exits: *Mat x2 / [*Sub]) -9/Materials (discovered 2 exits: [*Mat] / [*Min]) -9/Mines (discovered 4 exits: [*Mat x2] / [*Exi] / *Zio) -7/Zion -6/Proximity Caves History --------- Turn | Location | Event 4 | -11/Scrapyard | Discovered new exit (range 15) 212 | -11/Scrapyard | Entered Materials 293 | -10/Materials | Discovered new exit (range 16) 308 | -10/Materials | Build established: Mutant 309 | -10/Materials | Discovered new exit (range 11) 449 | -10/Materials | Discovered new exit (range 15) 609 | -10/Materials | Entered Mines 626 | -10/Mines | Discovered new exit (range 8) 636 | -10/Mines | Discovered new exit (range 9) 691 | -10/Mines | Learned Materials trap positions 707 | -10/Mines | Met a Derelict bent on vengeance 713 | -10/Mines | Joined a pair of Derelicts in attacking an 0b10 outpost 827 | -10/Mines | Found a hidden stash of uninstalled traps 1033 | -10/Mines | Build established: Scavenger-Mutant 1337 | -10/Mines | Core integrity fell below 50% 1606 | -10/Mines | Discovered new exit (range 15) 1612 | -10/Mines | Learned Materials terminal intel 1613 | -10/Mines | Received a Rocket Launcher from a helpful Derelict 1638 | -10/Mines | Entered Materials 1638 | -9/Materials | Evolved 2 slots: Propulsion x1, Utility x1 1639 | -9/Materials | Loaded intel: 14 trap records 1640 | -9/Materials | Loaded intel: 12 terminal locations 2593 | -9/Materials | Discovered new exit (range 18) 2763 | -9/Materials | Discovered new exit (range 10) 2813 | -9/Materials | Core integrity fell below 50% 2814 | -9/Materials | Entered Mines 2844 | -9/Mines | Discovered new exit (range 12) 2861 | -9/Mines | Lost 3 parts (1p1n1w) 3006 | -9/Mines | Deemed a non-threat by the Exiles lab entrance 3006 | -9/Mines | Discovered new exit (range 5) 3051 | -9/Mines | Assembled infested the area 3155 | -9/Mines | Learned Materials garrison access intel 3187 | -9/Mines | Discovered new exit (range 14) 3258 | -9/Mines | A Derelict revealed a hidden shortcut to a safe place 3261 | -9/Mines | Entered Zion 3293 | -7/Zion | Given A8's code to call for help 3350 | -7/Zion | Learned location of Warlord (-5) 3390 | -7/Zion | Received a hallucinogenic algorithm 3394 | -7/Zion | Ran a hallucination algorithm 3427 | -7/Zion | Build established: Mutant 3586 | -7/Zion | Met Imprinter 3602 | -7/Zion | Imprinted 3604 | -7/Zion | Declared Zion's savior 3816 | -7/Zion | Learned location of Data Miner (-6) 3888 | -7/Zion | Learned 4 Factory zone layouts 4032 | -7/Zion | Discovered new exit (range 12) 4051 | -7/Zion | Found CR-A16's Pointy Stick 4097 | -7/Zion | Entered Proximity Caves 4349 | -6/Proximity Caves | Core integrity fell below 20% 4415 | -6/Proximity Caves | Lost 3 parts (2p1w) 4583 | -6/Proximity Caves | Spotted B-75 Beast 4593 | -6/Proximity Caves | Attracted the attention of an 0b10 checkpoint 4599 | -6/Proximity Caves | Destroyed by Y-54 Guardian with Flak Gun Last Messages --------------- Lgt. Nuclear Core destroyed. S-27 Virus destroyed. VTOL Module fries itself beyond repair. Lgt. Nuclear Core fries itself beyond repair. Hvy. Battle Rifle destroyed. VTOL Module fries itself beyond repair. Lgt. Nuclear Core destroyed. Destroyed Autogun. Acquired 28 matter. Acquired 4 matter. Acquired 20 matter. Destroyed Lgt. Nuclear Core. S-27 Virus destroyed. Acquired VTOL Module. S-27 Virus destroyed. Cmb. Airjet destroyed. Dropped Adv. Beam Cannon. Acquired 4 matter. Y-54 Guardian: "INTERCEPTING UNREGISTERED DERELICT." Acquired 5 matter. Map ----- +----------------------------------------------------+ | ?????????????????????????????????????????????????? | | ?????????????????????????????????????????????????? | | ?????????????????????????????????????????????????? | | ?????????????????????????????????????????????????? | | ?????????????????????????????????????????????????? | | ?????????????????????????????????????????????????? | | ?????????????????????????????????????????????????? | | ?????????????????????????????????????????????????? | | ?????????????????????????????????????????????????? | | ?????????????????????????????????????????????????? | | ?????????????????????? ?????????????????????? | | ????????????????????? ????????????????????? | | ??????????????????? ?????????????????????? | | ??????????????????? ?????????????????????? | | ???????????????????? ?????????????????????? | | ???????????????????? ?????????????????????? | | ????????????????????? #?????????????????????? | | ????????????????????? BB ##????????????????????? | | ?????????????????????? BB ###??????????????????? | | ?????????????????????? ##?????? ??????????? | | ??????????????????????? ##??? ??????????? | | ???????????????????????; ## ?????????? | | ???????????????????????#; ?????????? | | ???????????????????????#; ??????????? | | ??????????????????????## #??????????????? | | ???????????????######## @ #???????????????? | | ?????????????### ]###;# ##???????????????? | | #???????????# ##??????????????????????? | | #?????????### #### #??????????????????????? | | ?????????## #?## ##?????????????????????? | | ?????????# ###?# ##????????????????????? | | ######???# Y #####?### ####?????????????????? | | ## ##### ##?????# #?????????????????? | | # #?????# ##?????????????????? | | ## #????# ### ##??????????????????? | | #### #????# ####?###???????????????????? | | #??## ##????# #???????????????????????????? | | ##??######?????# #????????????????????????????? | | #?????????????##?????????????????????????????? | | #####????????????????????????????????????????????? | | #????????????????????????????????????????????????? | | ?????????????????????????????????????????????????? | | ?????????????????????????????????????????????????? | | ?????????????????????????????????????????????????? | | ?????????????????????????????????????????????????? | | ?????????????????????????????????????????????????? | | ?????????????????????????????????????????????????? | | ?????????????????????????????????????????????????? | | ?????????????????????????????????????????????????? | | ?????????????????????????????????????????????????? | +----------------------------------------------------+ Best States ------------- Heat Dissipation 28 Energy Generation 14 Energy Capacity 265 Matter Stores 300 Matter Capacity 300 Sight Range 18 Terrain Scan Range 16 Terrain Scan Density 10 Armor Coverage 150 Evasion (%) 55 Targeting Accuracy 5 Item Schematics ----------------- Beamcaster | -9/Materials | Scanalyzed Chainsword | -7/Zion | Archive Hvy. Flak Cannon | -7/Zion | Archive Corruption Screen | -7/Zion | Archive Power Amplifier | -7/Zion | Archive Power Maul | -7/Zion | Archive Imp. Launcher Guidance Computer | -7/Zion | Archive Imp. Medium Treads | -7/Zion | Archive Shock Absorption System | -7/Zion | Archive Energy Well | -7/Zion | Archive Imp. Salvage Targeting Computer | -7/Zion | Archive Lance | -7/Zion | Archive Angular Momentum Engine | -7/Zion | Archive Plasma Cannon | -7/Zion | Archive Kinecellerator | -7/Zion | Archive IFF Parser | -7/Zion | Archive Robot Schematics ------------------ K-01 Serf | -7/Zion | Archive L-41 Fighter | -7/Zion | Archive B-36 Bruiser | -7/Zion | Archive Fabricated ------------ Nothing Repaired ---------- Nothing Studied --------- None Alien Tech Used ----------------- None Achievements -------------- It's Just You Overwhelming Robot Respite The One Well Done Challenges ------------ None Game ------ Seed OmegaCryofiberMatterbank Manual? 0 Play Time 01:20:33 Cumulative 8.4 hours Start 2026.06.30 @ 09:07:45 End 2026.06.30 @ 22:58:24 Sessions 3 Manual Loads 0 Difficulty Rogue Special Mode None Game No. 4 Rogue 4 Adventurer 0 Explorer 0 Win Type - Total 0 Types 0/0/0/0/0/0/0/0/0/0 Lore% 9 Gallery% 11 Achievement% 11 Wizard Run 0 Options --------- Layout 1 ASCII 0 Keyboard 0 Movement Numpad Keybinds 0 Fullscreen 1 Font 36/Smallcaps Map View 55x38 Zoom Use 0% Tactical HUD 0 Map Filters NONE Filters NONE Steam 1 RUN: e02b9670-2bcd-4413-946d-959705d66bf9